fUSD/lending_fUSD_20260404
["ID","MTS","AMOUNT","RATE_DAILY","PERIOD"]
[419714306,1775332273406,-500.0,0.00035616,9]
[419714307,1775332273417,-500.0,0.00035616,9]
[419714308,1775332273427,-500.78736658,0.00035616,9]
[419714309,1775332273436,-500.0,0.00035616,9]
[419714310,1775332273446,-500.0,0.00035616,9]
[419714311,1775332273456,-500.0,0.00035616,9]
[419714312,1775332273465,-500.0,0.00035616,9]
[419714313,1775332273475,-736.11,0.00035616,9]
[419714314,1775332273485,-500.0,0.00035616,9]
[419714315,1775332273495,-500.0,0.00035616,9]
[419714316,1775332273504,-1125.2,0.00035616,9]
[419714317,1775332273514,-500.0,0.00035616,9]
[419714318,1775332273524,-500.0,0.00035616,9]
[419714319,1775332273533,-500.0,0.00035616,9]
[419714320,1775332273543,-500.0,0.00035616,9]
[419714321,1775332273552,-500.0,0.00035616,9]
[419714322,1775332273562,-500.0,0.00035616,9]
[419714323,1775332273571,-500.0,0.00035616,9]
[419714324,1775332273582,-859.34,0.00035616,9]
[419714325,1775332273592,-997.12,0.00035616,9]
[419714326,1775332273601,-500.0,0.00035616,9]
[419714327,1775332273611,-500.0,0.00035616,9]
[419714328,1775332273621,-541.82095017,0.00035616,9]
[419714329,1775332273631,-534.5673654,0.00035616,9]
[419714330,1775332273640,-500.0,0.00035616,9]
[419714331,1775332273650,-500.0,0.00035616,9]
[419714332,1775332273661,-500.0,0.00035616,9]
[419714333,1775332273671,-500.0,0.00035616,9]
[419714334,1775332273680,-500.0,0.00035616,9]
[419714335,1775332273689,-507.93468535,0.00035616,9]
[419714336,1775332273700,-500.0,0.00035616,9]
[419714337,1775332273709,-16652.63,0.00035616,9]
[419714338,1775332273719,-348.73878001,0.00035616,9]
[419714339,1775332273729,-238.44938563,0.00035616,9]
[419714340,1775332273739,-500.0,0.00035616,9]
[419714341,1775332273749,-500.0,0.00035616,9]
[419714342,1775332273759,-500.0,0.00035616,9]
[419714343,1775332273769,-500.0,0.00035616,9]
[419714344,1775332273780,-500.0,0.00035616,9]
[419714345,1775332273790,-500.0,0.00035616,9]
[419714346,1775332273800,-500.0,0.00035616,9]
[419714347,1775332273810,-618.59,0.00035616,9]
[419714348,1775332273821,-520.972967,0.00035616,9]
[419714349,1775332273830,-675.04,0.00035616,9]
[419714350,1775332273840,-756.47,0.00035616,9]
[419714351,1775332273851,-504.68085996,0.00035616,9]
[419714352,1775332273861,-1113.0,0.00035616,9]
[419714353,1775332273871,-500.0,0.00035616,9]
[419714354,1775332273881,-577.41,0.00035616,9]
[419714355,1775332273891,-557.21712573,0.00035616,9]
[419714356,1775332273902,-2112.44,0.00035616,9]
[419714357,1775332273912,-500.0,0.00035616,9]
[419714358,1775332273921,-504.07909661,0.00035616,2]
[419714359,1775332273931,-693.75,0.00035616,9]
[419714360,1775332273942,-500.0,0.00035616,9]
[419714361,1775332273952,-500.0,0.00035616,9]
[419714362,1775332273962,-552.67244149,0.00035616,9]
[419714363,1775332273972,-500.0,0.00035616,9]
[419714364,1775332273982,-567.09,0.00035616,9]
[419714365,1775332273992,-2536.68,0.00035616,9]
[419714366,1775332274001,-1380.8,0.00035616,9]
[419714367,1775332274011,-500.0,0.00035616,9]
[419714368,1775332274021,-689.94,0.00035616,9]
[419714369,1775332274031,-505.81729782,0.00035616,9]
[419714370,1775332274041,-504.22475051,0.00035616,9]
[419714371,1775332274051,-500.0,0.00035616,9]
[419714372,1775332274060,-500.0,0.00035616,9]
[419714373,1775332274070,-1466.04,0.00035616,9]
[419714374,1775332274080,-502.49793491,0.00035616,9]
[419714375,1775332274089,-500.0,0.00035616,9]
[419714376,1775332274101,-1210.82,0.00035616,9]
[419714377,1775332274111,-520.66378039,0.00035616,9]
[419714378,1775332274121,-500.0,0.00035616,9]
[419714379,1775332274131,-512.2379375,0.00035616,9]
[419714380,1775332274140,-231.93877444,0.00035616,9]
[419714381,1775332274150,-230.82350058,0.00035616,9]
[419714382,1775332274160,-500.0,0.00035616,9]
[419714383,1775332274169,-500.0,0.00035616,9]
[419714384,1775332274179,-987.48,0.00035616,9]
[419714385,1775332274188,-1679.66,0.00035616,9]
[419714386,1775332274198,-500.0,0.00035616,9]
[419714387,1775332274207,-1583.7,0.00035616,9]
[419714388,1775332274217,-500.0,0.00035616,9]
[419714389,1775332274226,-500.0,0.00035616,9]
[419714390,1775332274236,-1088.32,0.00035616,9]
[419714391,1775332274245,-939.73,0.00035616,9]
[419714392,1775332274255,-500.0,0.00035616,9]
[419714393,1775332274264,-689.34,0.00035616,9]
[419714394,1775332274274,-500.0,0.00035616,9]
[419714395,1775332274284,-500.0,0.00035616,9]
[419714396,1775332274293,-500.0,0.00035616,9]
[419714397,1775332274303,-500.0,0.00035616,9]
[419714398,1775332274313,-1341.69,0.00035616,9]
[419714399,1775332274323,-500.0,0.00035616,9]
[419714400,1775332274332,-500.0,0.00035616,9]
[419714401,1775332274342,-500.0,0.00035616,9]
[419714402,1775332274351,-887.16,0.00035616,9]
[419714403,1775332274360,-500.0,0.00035616,9]
[419714404,1775332274369,-500.0,0.00035616,9]
[419714405,1775332274378,-2214.87,0.00035616,9]
[419714406,1775332274387,-500.0,0.00035616,9]
[419714407,1775332274396,-500.0,0.00035616,9]
[419714408,1775332274406,-1053.02,0.00035616,9]
[419714409,1775332274415,-650.72,0.00035616,9]
[419714410,1775332274424,-500.0,0.00035616,9]
[419714411,1775332274434,-500.0,0.00035616,9]
[419714412,1775332274443,-500.0,0.00035616,9]
[419714413,1775332274452,-3460.22,0.00035616,9]
[419714414,1775332274461,-500.0,0.00035616,9]
[419714415,1775332274470,-500.0,0.00035616,9]
[419714416,1775332274479,-500.0,0.00035616,9]
[419714417,1775332274488,-500.0,0.00035616,9]
[419714418,1775332274497,-665.92,0.00035616,9]
[419714419,1775332274507,-500.0,0.00035616,9]
[419714420,1775332274516,-1510.72,0.00035616,9]
[419714421,1775332274526,-502.87817421,0.00035616,9]
[419714422,1775332274535,-671.1,0.00035616,9]
[419714423,1775332274545,-500.0,0.00035616,9]
[419714424,1775332274554,-500.0,0.00035616,9]
[419714425,1775332274563,-500.0,0.00035616,9]
[419714426,1775332274572,-661.05,0.00035616,9]
[419714427,1775332274582,-500.0,0.00035616,9]
[419714428,1775332274591,-500.0,0.00035616,9]
[419714429,1775332274601,-500.0,0.00035616,9]
[419714430,1775332274610,-2848.88,0.00035616,9]
[419714431,1775332274619,-392.54385664,0.00035616,9]
[419714432,1775332274628,-516.17838491,0.00035616,9]
[419714433,1775332274638,-519.17221443,0.00035616,9]
[419714434,1775332274648,-501.69667394,0.00035616,9]
[419714435,1775332274658,-501.70441702,0.00035616,9]
[419714436,1775332274668,-500.0,0.00035616,9]
[419714437,1775332274677,-500.0,0.00035616,9]
[419714438,1775332274688,-500.0,0.00035616,9]
[419714439,1775332274699,-500.0,0.00035616,9]
[419714440,1775332274708,-305.5758652,0.00035616,9]
[419714441,1775332274718,-500.0,0.00035616,9]
[419714442,1775332274728,-500.0,0.00035616,9]
[419714443,1775332274737,-528.89543598,0.00035616,9]
[419714444,1775332274747,-1158.03,0.00035616,9]
[419714445,1775332274756,-500.0,0.00035616,9]
[419714446,1775332274765,-2056.21,0.00035616,9]
[419714447,1775332274776,-3716.1,0.00035616,9]
[419714448,1775332274786,-500.0,0.00035616,9]
[419714449,1775332274797,-3791.02,0.00035616,9]
[419714450,1775332274807,-500.0,0.00035616,9]
[419714451,1775332274816,-500.0,0.00035616,9]
[419714452,1775332274825,-1099.04,0.00035616,9]
[419714453,1775332274835,-500.0,0.00035616,9]
[419714454,1775332274846,-252.40493752,0.00035616,9]
[419714455,1775332274857,-507.07597938,0.00035616,9]
[419714456,1775332274867,-500.0,0.00035616,9]
[419714457,1775332274876,-500.0,0.00035616,9]
[419714458,1775332274886,-500.0,0.00035616,9]
[419714459,1775332274895,-500.0,0.00035616,9]
[419714460,1775332274905,-500.0,0.00035616,9]
[419714461,1775332274914,-500.0,0.00035616,9]
[419714462,1775332274924,-183.35079897,0.00035616,9]
[419714463,1775332274933,-500.0,0.00035616,9]
[419714464,1775332274943,-4657.69,0.00035616,2]
[419714465,1775332274952,-501.92189803,0.00035616,9]
[419714466,1775332274962,-500.0,0.00035616,9]
[419714467,1775332274971,-500.0,0.00035616,9]
[419714468,1775332274980,-500.0,0.00035616,9]
[419714469,1775332274989,-504.96718764,0.00035616,9]
[419714470,1775332274999,-500.0,0.00035616,9]
[419714471,1775332275008,-500.0,0.00035616,9]
[419714472,1775332275017,-1363.26,0.00035616,9]
[419714473,1775332275027,-500.0,0.00035616,9]
[419714474,1775332275036,-500.0,0.00035616,9]
[419714475,1775332275047,-642.42,0.00035616,9]
[419714476,1775332275056,-500.0,0.00035616,9]
[419714477,1775332275066,-500.0,0.00035616,9]
[419714478,1775332275075,-500.0,0.00035616,9]
[419714479,1775332275085,-1016.34,0.00035616,9]
[419714480,1775332275094,-514.60177451,0.00035616,9]
[419714481,1775332275104,-500.0,0.00035616,9]
[419714482,1775332275113,-2811.63,0.00035616,9]
[419714483,1775332275124,-500.0,0.00035616,9]
[419714484,1775332275134,-500.0,0.00035616,9]
[419714485,1775332275144,-1344.95,0.00035616,9]
[419714486,1775332275154,-500.0,0.00035616,9]
[419714487,1775332275163,-685.05,0.00035616,9]
[419714488,1775332275173,-920.03,0.00035616,9]
[419714489,1775332275182,-2020.19,0.00035616,9]
[419714490,1775332275191,-500.0,0.00035616,9]
[419714491,1775332275201,-500.0,0.00035616,9]
[419714492,1775332275211,-504.42814346,0.00035616,9]
[419714493,1775332275220,-500.0,0.00035616,9]
[419714494,1775332275230,-500.79765431,0.00035616,9]
[419714495,1775332275239,-500.0,0.00035616,9]
[419714496,1775332275248,-500.0,0.00035616,9]
[419714497,1775332275258,-1538.98,0.00035616,9]
[419714498,1775332275268,-607.83387468,0.00035616,9]
[419714499,1775332275277,-330.00449354,0.00035616,9]
[419714500,1775332275286,-500.0,0.00035616,9]
[419714501,1775332275296,-500.0,0.00035616,9]
[419714502,1775332275305,-500.0,0.00035616,9]
[419714503,1775332275315,-500.0,0.00035616,9]
[419714504,1775332275325,-500.0,0.00035616,9]
[419714505,1775332275334,-500.0,0.00035616,9]
[419714506,1775332275344,-500.0,0.00035616,9]
[419714507,1775332275354,-507.40028193,0.00035616,9]
[419714508,1775332275363,-500.0,0.00035616,9]
[419714509,1775332275372,-500.0,0.00035616,9]
[419714510,1775332275382,-500.0,0.00035616,9]
[419714511,1775332275392,-172.56549153,0.00035616,9]
[419714512,1775332275401,-555.59830826,0.00035616,9]
[419714513,1775332275411,-500.0,0.00035616,9]
[419714514,1775332275420,-500.0,0.00035616,9]
[419714515,1775332275430,-500.0,0.00035616,9]
[419714516,1775332275439,-500.0,0.00035616,9]
[419714517,1775332275449,-235.24341184,0.00035616,9]
[419714518,1775332275458,-300.0,0.00035616,2]
[419714519,1775332275468,-500.0,0.00035616,9]
[419714520,1775332275478,-500.0,0.00035616,9]
[419714521,1775332275487,-500.0,0.00035616,9]
[419714522,1775332275497,-500.0,0.00035616,9]
[419714523,1775332275506,-500.0,0.00035616,9]
[419714524,1775332275516,-4906.33,0.00035616,9]
[419714525,1775332275525,-500.0,0.00035616,9]
[419714526,1775332275535,-500.0,0.00035616,9]
[419714527,1775332275544,-1247.96,0.00035616,9]
[419714528,1775332275554,-500.0,0.00035616,9]
[419714529,1775332275563,-238.89086449,0.00035616,9]
[419714530,1775332275573,-500.0,0.00035616,9]
[419714531,1775332275582,-1272.39,0.00035616,9]
[419714532,1775332275592,-500.0,0.00035616,9]
[419714533,1775332275601,-500.0,0.00035616,9]
[419714534,1775332275611,-847.31,0.00035616,9]
[419714535,1775332275621,-337.66440374,0.00035616,9]
[419714536,1775332275630,-500.0,0.00035616,9]
[419714537,1775332275640,-506.74672236,0.00035616,9]
[419714538,1775332275649,-500.0,0.00035616,9]
[419714539,1775332275659,-2712.78,0.00035616,9]
[419714540,1775332275668,-500.0,0.00035616,9]
[419714541,1775332275678,-500.0,0.00035616,9]
[419714542,1775332275687,-512.42416307,0.00035616,9]
[419714543,1775332275697,-500.0,0.00035616,9]
[419714544,1775332275706,-1482.77,0.00035616,9]
[419714545,1775332275716,-500.0,0.00035616,120]
[419714546,1775332275725,-1648.41,0.00035616,9]
[419714547,1775332275734,-500.0,0.00035616,9]
[419714548,1775332275744,-784.21,0.00035616,9]
[419714549,1775332275753,-500.0,0.00035616,9]
[419714550,1775332275763,-500.0,0.00035616,9]
[419714551,1775332275772,-2678.07,0.00035616,9]
[419714552,1775332275782,-500.0,0.00035616,9]
[419714553,1775332275791,-1057.26,0.00035616,9]
[419714554,1775332275800,-500.0,0.00035616,9]
[419714555,1775332275810,-3119.66,0.00035616,9]
[419714556,1775332275819,-500.0,0.00035616,9]
[419714557,1775332275829,-500.0,0.00035616,5]
[419714558,1775332275838,-3255.09,0.00035616,9]
[419714559,1775332275848,-500.0,0.00035616,9]
[419714560,1775332275858,-500.0,0.00035616,9]
[419714561,1775332275867,-500.0,0.00035616,9]
[419714562,1775332275877,-1020.6228061,0.00035616,9]
[419714563,1775332275886,-2834.56,0.00035616,9]
[419714564,1775332275896,-500.0,0.00035616,9]
[419714565,1775332275905,-500.0,0.00035616,9]
[419714566,1775332275915,-919.38,0.00035616,9]
[419714567,1775332275924,-500.0,0.00035616,9]
[419714568,1775332275934,-500.0,0.00035616,9]
[419714569,1775332275944,-214.57635739,0.00035616,9]
[419714570,1775332275953,-164.85215702,0.00035616,9]
[419714571,1775332275963,-500.0,0.00035616,9]
[419714572,1775332275973,-500.0,0.00035616,9]
[419714573,1775332275982,-500.0,0.00035616,9]
[419714574,1775332275992,-500.0,0.00035616,9]
[419714575,1775332276002,-1324.69,0.00035616,9]
[419714576,1775332276012,-1524.5,0.00035616,9]
[419714577,1775332276021,-3851.02,0.00035616,9]
[419714578,1775332276031,-500.0,0.00035616,9]
[419714579,1775332276041,-500.0,0.00035616,9]
[419714580,1775332276052,-1860.07,0.00035616,9]
[419714581,1775332276061,-500.0,0.00035616,9]
[419714582,1775332276070,-991.9,0.00035616,9]
[419714583,1775332276080,-502.70684373,0.00035616,9]
[419714584,1775332276089,-500.0,0.00035616,9]
[419714585,1775332276100,-1457.74,0.00035616,9]
[419714586,1775332276110,-739.68,0.00035616,9]
[419714587,1775332276120,-4759.97,0.00035616,9]
[419714588,1775332276130,-500.0,0.00035616,9]
[419714589,1775332276140,-1835.76,0.00035616,9]
[419714590,1775332276149,-495.91942472,0.00035616,9]
[419714591,1775332276160,-864.07,0.00035616,9]
[419714592,1775332276172,-500.0,0.00035616,9]
[419714593,1775332276182,-500.0,0.00035616,9]
[419714594,1775332276192,-500.0,0.00035616,9]
[419714595,1775332276201,-507.86663887,0.00035616,9]
[419714596,1775332276211,-500.0,0.00035616,9]
[419714597,1775332276221,-2691.67,0.00035616,9]
[419714598,1775332276230,-500.0,0.00035616,9]
[419714599,1775332276240,-500.0,0.00035616,9]
[419714600,1775332276250,-500.0,0.00035616,9]
[419714601,1775332276260,-500.0,0.00035616,9]
[419714602,1775332276270,-500.0,0.00035616,9]
[419714603,1775332276279,-500.0,0.00035616,9]
[419714604,1775332276289,-527.82211264,0.00035616,9]
[419714605,1775332276299,-513.53863281,0.00035616,9]
[419714606,1775332276309,-639.67244347,0.00035616,9]
[419714607,1775332276319,-500.0,0.00035616,9]
[419714608,1775332276329,-500.0,0.00035616,9]
[419714609,1775332276338,-500.0,0.00035616,9]
[419714610,1775332276348,-500.0,0.00035616,9]
[419714611,1775332276357,-500.0,0.00035616,9]
[419714612,1775332276367,-500.0,0.00035616,9]
[419714613,1775332276376,-500.0,0.00035616,9]
[419714614,1775332276385,-500.0,0.00035616,9]
[419714615,1775332276394,-500.0,0.00035616,9]
[419714616,1775332276404,-566.87823055,0.00035616,9]
[419714617,1775332276413,-500.0,0.00035616,9]
[419714618,1775332276423,-2429.23,0.00035616,9]
[419714619,1775332276432,-832.88,0.00035616,9]
[419714620,1775332276442,-1552.09,0.00035616,9]
[419714621,1775332276451,-500.0,0.00035616,9]
[419714622,1775332276461,-500.0,0.00035616,9]
[419714623,1775332276471,-500.0,0.00035616,9]
[419714624,1775332276480,-506.23186627,0.00035616,9]
[419714625,1775332276490,-500.0,0.00035616,9]
[419714626,1775332276499,-2300.44,0.00035616,9]
[419714627,1775332276508,-235.77323409,0.00035616,9]
[419714628,1775332276518,-540.97328865,0.00035616,9]
[419714629,1775332276527,-500.0,0.00035616,9]
[419714630,1775332276537,-722.2,0.00035616,9]
[419714631,1775332276738,-500.0,0.00035616,9]
[419714632,1775332276754,-500.0,0.00035616,9]
[419714633,1775332276763,-500.0,0.00035616,9]
[419714634,1775332276773,-500.0,0.00035616,9]
[419714635,1775332276782,-500.0,0.00035616,9]
[419714636,1775332276791,-1875.66,0.00035616,9]
[419714637,1775332276801,-500.0,0.00035616,9]
[419714638,1775332276811,-856.85,0.00035616,9]
[419714639,1775332276821,-500.0,0.00035616,9]
[419714640,1775332276830,-500.0,0.00035616,9]
[419714641,1775332276840,-500.0,0.00035616,9]
[419714642,1775332276849,-505.9717698,0.00035616,9]
[419714643,1775332276859,-1602.47,0.00035616,9]
[419714644,1775332276868,-500.0,0.00035616,9]
[419714645,1775332276878,-500.0,0.00035616,9]
[419714646,1775332276887,-500.0,0.00035616,9]
[419714647,1775332276897,-500.0,0.00035616,9]
[419714648,1775332276906,-501.00888422,0.00035616,9]
[419714649,1775332276919,-500.0,0.00035616,9]
[419714650,1775332276929,-500.0,0.00035616,9]
[419714651,1775332276938,-500.0,0.00035616,9]
[419714652,1775332276948,-634.93,0.00035616,9]
[419714653,1775332276957,-2561.66,0.00035616,9]
[419714654,1775332276967,-2085.41,0.00035616,9]
[419714655,1775332276976,-500.0,0.00035616,9]
[419714656,1775332276985,-500.0,0.00035616,9]
[419714657,1775332276994,-500.0,0.00035616,9]
[419714658,1775332277004,-667.0,0.00035616,9]
[419714659,1775332277016,-631.91368595,0.00035616,9]
[419714660,1775332277025,-1870.36,0.00035616,9]
[419714661,1775332277035,-500.0,0.00035616,9]
[419714662,1775332277046,-500.0,0.00035616,9]
[419714663,1775332277056,-492.36653292,0.00035616,9]
[419714664,1775332277065,-353.38669796,0.00035616,9]
[419714665,1775332277075,-500.0,0.00035616,9]
[419714666,1775332277085,-533.73,0.00035616,9]
[419714667,1775332277095,-500.0,0.00035616,9]
[419714668,1775332277104,-500.0,0.00035616,9]
[419714669,1775332277114,-1716.24,0.00035616,9]
[419714670,1775332277124,-1534.12,0.00035616,9]
[419714671,1775332277133,-1548.87,0.00035616,9]
[419714672,1775332277143,-500.0,0.00035616,9]
[419714673,1775332277152,-1477.04,0.00035616,9]
[419714674,1775332277161,-500.0,0.00035616,9]
[419714675,1775332277171,-500.0,0.00035616,9]
[419714676,1775332277181,-3546.04,0.00035616,9]
[419714677,1775332277190,-500.0,0.00035616,9]
[419714678,1775332277199,-512.58251243,0.00035616,9]
[419714679,1775332277209,-500.0,0.00035616,9]
[419714680,1775332277219,-500.0,0.00035616,9]
[419714681,1775332277228,-1514.21,0.00035616,9]
[419714682,1775332277238,-500.0,0.00035616,9]
[419714683,1775332277247,-1144.34,0.00035616,9]
[419714684,1775332277257,-931.09,0.00035616,9]
[419714685,1775332277266,-500.0,0.00035616,9]
[419714686,1775332277275,-500.0,0.00035616,9]
[419714687,1775332277285,-500.0,0.00035616,9]
[419714688,1775332277295,-500.0,0.00035616,9]
[419714689,1775332277304,-796.08,0.00035616,9]
[419714690,1775332277314,-513.516864,0.00035616,9]
[419714691,1775332277324,-500.23984807,0.00035616,9]
[419714692,1775332277334,-1253.59,0.00035616,9]
[419714693,1775332277344,-500.0,0.00035616,9]
[419714694,1775332277354,-500.0,0.00035616,9]
[419714695,1775332277364,-500.0,0.00035616,9]
[419714696,1775332277374,-500.0,0.00035616,9]
[419714697,1775332277384,-1918.72,0.00035616,9]
[419714698,1775332277393,-1526.6,0.00035616,9]
[419714699,1775332277402,-541.14556203,0.00035616,9]
[419714700,1775332277413,-500.0,0.00035616,9]
[419714701,1775332277424,-507.12985443,0.00035616,9]
[419714702,1775332277434,-500.0,0.00035616,9]
[419714703,1775332277444,-500.0,0.00035616,9]
[419714704,1775332277453,-500.0,0.00035616,9]
[419714705,1775332277463,-500.0,0.00035616,9]
[419714706,1775332277474,-1585.21,0.00035616,9]
[419714707,1775332277484,-522.3692304,0.00035616,9]
[419714708,1775332277495,-500.0,0.00035616,9]
[419714709,1775332277505,-514.71,0.00035616,9]
[419714710,1775332277515,-1721.53,0.00035616,9]
[419714711,1775332277525,-500.0,0.00035616,9]
[419714712,1775332277538,-500.0,0.00035616,9]
[419714713,1775332277549,-500.0,0.00035616,9]
[419714714,1775332277559,-500.0,0.00035616,9]
[419714715,1775332277571,-500.0,0.00035616,9]
[419714716,1775332277580,-1523.365646,0.00035616,7]
[419714717,1775332277592,-500.0,0.00035616,9]
[419714718,1775332277601,-500.0,0.00035616,9]
[419714719,1775332277611,-500.0,0.00035616,9]
[419714720,1775332277620,-500.0,0.00035616,9]
[419714721,1775332277629,-1523.365646,0.00035616,7]
[419714722,1775332277640,-500.0,0.00035616,9]
[419714723,1775332277650,-1809.46,0.00035616,9]
[419714724,1775332277660,-500.0,0.00035616,9]
[419714725,1775332277670,-500.0,0.00035616,9]
[419714726,1775332277680,-1523.365646,0.00035616,7]
[419714727,1775332277690,-897.26,0.00035616,9]
[419714728,1775332277699,-959.468694,0.00035616,7]
[419714729,1775332277709,-1413.82,0.00035616,9]
[419714730,1775332277719,-500.0,0.00035616,9]
[419714731,1775332277729,-500.0,0.00035616,9]
[419714732,1775332277739,-500.0,0.00035616,9]
[419714733,1775332277748,-453.595881,0.00035616,7]
[419714734,1775332277757,-1523.365653,0.00035616,7]
[419714735,1775332277767,-500.0,0.00035616,9]
[419714736,1775332277776,-500.0,0.00035616,9]
[419714737,1775332277787,-959.468694,0.00035616,7]
[419714738,1775332277796,-453.595881,0.00035616,7]
[419714739,1775332277806,-500.0,0.00035616,9]
[419714740,1775332277816,-957.36,0.00035616,9]
[419714741,1775332277826,-500.0,0.00035616,9]
[419714742,1775332277836,-500.0,0.00035616,9]
[419714743,1775332277845,-500.0,0.00035616,9]
[419714744,1775332277855,-959.468694,0.00035616,7]
[419714745,1775332277865,-500.0,0.00035616,9]
[419714746,1775332277874,-500.0,0.00035616,9]
[419714747,1775332277884,-286.89523471,0.00035616,9]
[419714748,1775332277893,-961.19,0.00035616,9]
[419714749,1775332277903,-4322.78,0.00035616,9]
[419714750,1775332277913,-453.595881,0.00035616,7]
[419714751,1775332277924,-1038.584933,0.00035616,7]
[419714752,1775332277934,-500.0,0.00035616,9]
[419714753,1775332277944,-959.468703,0.00035616,7]
[419714754,1775332277955,-500.0,0.00035616,9]
[419714755,1775332277965,-500.0,0.00035616,9]
[419714756,1775332277974,-453.595885,0.00035616,7]
[419714757,1775332277984,-1038.584933,0.00035616,7]
[419714758,1775332277994,-500.0,0.00035616,9]
[419714759,1775332278004,-500.0,0.00035616,9]
[419714760,1775332278013,-225.21883941,0.00035616,9]
[419714761,1775332278022,-1482.98,0.00035616,9]
[419714762,1775332278031,-804.52,0.00035616,9]
[419714763,1775332278041,-1038.584933,0.00035616,7]
[419714764,1775332278051,-3934.55,0.00035616,9]
[419714765,1775332278061,-500.0,0.00035616,9]
[419714766,1775332278069,-500.0,0.00035616,9]
[419714767,1775332278079,-500.0,0.00035616,9]
[419714768,1775332278088,-500.0,0.00035616,9]
[419714769,1775332278098,-500.0,0.00035616,9]
[419714770,1775332278108,-1038.584939,0.00035616,7]
[419714771,1775332278117,-746.22,0.00035616,7]
[419714772,1775332278128,-646.23269439,0.00035616,9]
[419714773,1775332278138,-4305.65,0.00035616,9]
[419714774,1775332278148,-500.0,0.00035616,9]
[419714775,1775332278158,-500.0,0.00035616,9]
[419714776,1775332278167,-500.0,0.00035616,9]
[419714777,1775332278176,-1369.12,0.00035616,9]
[419714778,1775332278186,-500.0,0.00035616,9]
[419714779,1775332278195,-500.0,0.00035616,9]
[419714780,1775332278204,-1177.45,0.00035616,9]
[419714781,1775332278214,-181.9982508,0.00035616,9]
[419714782,1775332278223,-500.0,0.00035616,9]
[419714783,1775332278233,-500.0,0.00035616,9]
[419714784,1775332278242,-798.28,0.00035616,9]
[419714785,1775332278252,-500.0,0.00035616,9]
[419714786,1775332278261,-500.0,0.00035616,9]
[419714787,1775332278271,-1917.88,0.00035616,9]
[419714788,1775332278280,-2157.58,0.00035616,9]
[419714789,1775332278290,-500.0,0.00035616,9]
[419714790,1775332278299,-500.0,0.00035616,9]
[419714791,1775332278309,-2063.41,0.00035616,9]
[419714792,1775332278318,-500.0,0.00035616,9]
[419714793,1775332278327,-500.0,0.00035616,9]
[419714794,1775332278336,-500.0,0.00035616,9]
[419714795,1775332278346,-500.0,0.00035616,9]
[419714796,1775332278355,-500.0,0.00035616,9]
[419714797,1775332278364,-3118.14,0.00035616,9]
[419714798,1775332278373,-500.0,0.00035616,9]
[419714799,1775332278382,-500.0,0.00035616,9]
[419714800,1775332278392,-500.0,0.00035616,9]
[419714801,1775332278400,-500.0,0.00035616,9]
[419714802,1775332278409,-2737.83,0.00035616,4]
[419714803,1775332278418,-500.0,0.00035616,9]
[419714804,1775332278428,-500.0,0.00035616,9]
[419714805,1775332278437,-500.0,0.00035616,9]